[Event "*** Titled Tuesday Blitz"]
[Site "Chess.com"]
[Date "2018.06.05"]
[Round "1"]
[White "Galileo22"]
[Black "jacky72"]
[Result "0-1"]
[WhiteElo "2324"]
[BlackElo "2639"]
[TimeControl "180+2"]
[EndTime "13:09:30 PDT"]
[Termination "jacky72 won by checkmate"]

1. e4 {[%clk 0:03:00.6]} 1... e5 {[%clk 0:03:00]} 2. Nf3 {[%clk 0:03:01.3]} 2...
Nc6 {[%clk 0:02:58.8]} 3. Bc4 {[%clk 0:03:02.2]} 3... Bc5 {[%clk 0:02:57.6]} 4.
c3 {[%clk 0:03:02]} 4... Nf6 {[%clk 0:02:41.2]} 5. d3 {[%clk 0:03:03]} 5... d6
{[%clk 0:02:41.5]} 6. O-O {[%clk 0:03:01.9]} 6... a6 {[%clk 0:02:42.9]} 7. a4
{[%clk 0:03:02.1]} 7... h6 {[%clk 0:02:35.1]} 8. b4 {[%clk 0:03:01.4]} 8... Ba7
{[%clk 0:02:34.2]} 9. Nbd2 {[%clk 0:03:02.2]} 9... g5 {[%clk 0:02:34]} 10. Kh1
{[%clk 0:02:43.6]} 10... g4 {[%clk 0:02:34.7]} 11. Ne1 {[%clk 0:02:32.6]} 11...
Be6 {[%clk 0:02:34.9]} 12. Bxe6 {[%clk 0:02:29.9]} 12... fxe6 {[%clk 0:02:35.8]}
13. b5 {[%clk 0:02:20]} 13... Na5 {[%clk 0:02:31.2]} 14. Nb3 {[%clk 0:02:11]}
14... Nxb3 {[%clk 0:02:31.3]} 15. Qxb3 {[%clk 0:02:12.9]} 15... Qe7 {[%clk
0:02:16.5]} 16. Be3 {[%clk 0:02:05]} 16... Bxe3 {[%clk 0:02:09.6]} 17. fxe3
{[%clk 0:02:06.9]} 17... O-O {[%clk 0:02:11.2]} 18. Qd1 {[%clk 0:01:34.5]} 18...
axb5 {[%clk 0:01:56.6]} 19. axb5 {[%clk 0:01:36.3]} 19... Rxa1 {[%clk
0:01:57.9]} 20. Qxa1 {[%clk 0:01:37.1]} 20... Nxe4 {[%clk 0:01:59.8]} 21. Nc2
{[%clk 0:00:54.9]} 21... Nxc3 {[%clk 0:01:55.1]} 22. b6 {[%clk 0:00:41.4]} 22...
cxb6 {[%clk 0:01:55.5]} 23. e4 {[%clk 0:00:34.4]} 23... Ne2 {[%clk 0:01:50.7]}
24. Qe1 {[%clk 0:00:32.3]} 24... Nf4 {[%clk 0:01:47.8]} 25. Qg3 {[%clk 0:00:31]}
25... h5 {[%clk 0:01:47.7]} 26. h3 {[%clk 0:00:30.9]} 26... Ne2 {[%clk
0:01:42.1]} 27. Rxf8+ {[%clk 0:00:28.6]} 27... Qxf8 {[%clk 0:01:43.2]} 28. Qe1
{[%clk 0:00:30]} 28... Nf4 {[%clk 0:01:39.8]} 29. Qe3 {[%clk 0:00:29.7]} 29...
gxh3 {[%clk 0:01:35.1]} 30. gxh3 {[%clk 0:00:31.6]} 30... Qg7 {[%clk 0:01:36.6]}
31. Ne1 {[%clk 0:00:31]} 31... h4 {[%clk 0:01:35.1]} 32. Qxb6 {[%clk 0:00:28]}
32... Qg3 {[%clk 0:01:34.4]} 33. Qd8+ {[%clk 0:00:28.6]} 33... Kf7 {[%clk
0:01:31.8]} 34. Qd7+ {[%clk 0:00:29.7]} 34... Kf6 {[%clk 0:01:30.4]} 35. Qd8+
{[%clk 0:00:30.5]} 35... Kg7 {[%clk 0:01:29.4]} 36. Qe7+ {[%clk 0:00:30.8]}
36... Kh6 {[%clk 0:01:27.8]} 37. Qf6+ {[%clk 0:00:27.9]} 37... Ng6 {[%clk
0:01:27.3]} 38. Qf1 {[%clk 0:00:28.4]} 38... Nf4 {[%clk 0:01:27.6]} 39. Nf3
{[%clk 0:00:22.3]} 39... Nxh3 {[%clk 0:01:21.4]} 40. Qg2 {[%clk 0:00:20.5]}
40... Nf2+ {[%clk 0:01:19.4]} 41. Kg1 {[%clk 0:00:21.4]} 41... Qxg2+ {[%clk
0:01:19.1]} 42. Kxg2 {[%clk 0:00:23.2]} 42... Nxd3 {[%clk 0:01:20.7]} 43. Nxh4
{[%clk 0:00:24]} 43... b5 {[%clk 0:01:20]} 44. Nf3 {[%clk 0:00:25]} 44... b4
{[%clk 0:01:21.4]} 45. Nd2 {[%clk 0:00:26]} 45... Nc5 {[%clk 0:01:22.9]} 46. Kf3
{[%clk 0:00:26.4]} 46... Kg5 {[%clk 0:01:24.4]} 47. Ke3 {[%clk 0:00:27.2]} 47...
b3 {[%clk 0:01:25.6]} 48. Nc4 {[%clk 0:00:28]} 48... Na4 {[%clk 0:01:24.9]} 49.
Kd3 {[%clk 0:00:29.1]} 49... Nc5+ {[%clk 0:01:20.7]} 50. Ke3 {[%clk 0:00:29.3]}
50... Nb7 {[%clk 0:01:21.9]} 51. Kd3 {[%clk 0:00:28.9]} 51... Kf4 {[%clk
0:01:22.5]} 52. Nd2 {[%clk 0:00:26.9]} 52... b2 {[%clk 0:01:19.5]} 53. Kc2
{[%clk 0:00:27.9]} 53... Nc5 {[%clk 0:01:20.7]} 54. Kxb2 {[%clk 0:00:25.3]}
54... Nxe4 {[%clk 0:01:21.9]} 55. Nc4 {[%clk 0:00:25.2]} 55... d5 {[%clk
0:01:22.8]} 56. Na3 {[%clk 0:00:24.7]} 56... Nd6 {[%clk 0:01:22.9]} 57. Kc3
{[%clk 0:00:25.2]} 57... Ke3 {[%clk 0:01:20.6]} 58. Nc2+ {[%clk 0:00:25.5]}
58... Ke2 {[%clk 0:01:21.7]} 59. Kb4 {[%clk 0:00:24.6]} 59... Ne4 {[%clk
0:01:20.8]} 60. Kb5 {[%clk 0:00:23]} 60... d4 {[%clk 0:01:21.9]} 61. Nb4 {[%clk
0:00:23.9]} 61... d3 {[%clk 0:01:22.5]} 62. Nxd3 {[%clk 0:00:22]} 62... Nd6+
{[%clk 0:01:21.9]} 63. Kc6 {[%clk 0:00:23.9]} 63... Kxd3 {[%clk 0:01:22.7]} 64.
Kxd6 {[%clk 0:00:24.4]} 64... e4 {[%clk 0:01:24.6]} 65. Kxe6 {[%clk 0:00:26.2]}
65... e3 {[%clk 0:01:26.5]} 66. Kd5 {[%clk 0:00:27.9]} 66... e2 {[%clk
0:01:28.4]} 67. Kc5 {[%clk 0:00:29.8]} 67... e1=Q {[%clk 0:01:30.3]} 68. Kb5
{[%clk 0:00:30.9]} 68... Qh1 {[%clk 0:01:31.4]} 69. Kc5 {[%clk 0:00:32.8]} 69...
Qh8 {[%clk 0:01:33.2]} 70. Kd5 {[%clk 0:00:31.8]} 70... Qa8+ {[%clk 0:01:35.1]}
71. Kc5 {[%clk 0:00:32.8]} 71... Qa1 {[%clk 0:01:37]} 72. Kd5 {[%clk 0:00:34.5]}
72... Qa5+ {[%clk 0:01:38.1]} 73. Ke6 {[%clk 0:00:35.3]} 73... Ke4 {[%clk
0:01:39.5]} 74. Kd6 {[%clk 0:00:36.5]} 74... Qb6+ {[%clk 0:01:40.5]} 75. Ke7
{[%clk 0:00:37.5]} 75... Ke5 {[%clk 0:01:42.4]} 76. Kf7 {[%clk 0:00:39.2]} 76...
Qh6 {[%clk 0:01:39.1]} 77. Ke8 {[%clk 0:00:41]} 77... Qg7 {[%clk 0:01:39.3]} 78.
Kd8 {[%clk 0:00:41.6]} 78... Kd6 {[%clk 0:01:41.2]} 79. Ke8 {[%clk 0:00:42.3]}
79... Qg8# {[%clk 0:01:42.4]} 0-1

[Event "*** Titled Tuesday Blitz"]
[Site "Chess.com"]
[Date "2018.06.05"]
[Round "1"]
[White "lupta_robin"]
[Black "Paralinch"]
[Result "0-1"]
[WhiteElo "2415"]
[BlackElo "2824"]
[TimeControl "180+2"]
[EndTime "13:09:47 PDT"]
[Termination "Paralinch won by resignation"]

1. e4 {[%clk 0:03:00.5]} 1... c6 {[%clk 0:02:20.8]} 2. d4 {[%clk 0:02:58.8]}
2... d5 {[%clk 0:02:21.8]} 3. Nc3 {[%clk 0:02:59.6]} 3... dxe4 {[%clk 0:02:23]}
4. Nxe4 {[%clk 0:03:00.6]} 4... Bf5 {[%clk 0:02:24.5]} 5. Ng3 {[%clk 0:03:01.7]}
5... Bg6 {[%clk 0:02:25.8]} 6. h4 {[%clk 0:03:03.1]} 6... h6 {[%clk 0:02:27]} 7.
Nf3 {[%clk 0:03:04]} 7... Nd7 {[%clk 0:02:28]} 8. h5 {[%clk 0:03:05.1]} 8... Bh7
{[%clk 0:02:29.5]} 9. Bd3 {[%clk 0:03:05.7]} 9... Bxd3 {[%clk 0:02:31]} 10. Qxd3
{[%clk 0:03:06.3]} 10... e6 {[%clk 0:02:32.9]} 11. Bf4 {[%clk 0:03:06.3]} 11...
Qa5+ {[%clk 0:02:33.2]} 12. Bd2 {[%clk 0:03:06.7]} 12... Bb4 {[%clk 0:02:34.1]}
13. c3 {[%clk 0:03:07.9]} 13... Be7 {[%clk 0:02:35.2]} 14. c4 {[%clk 0:03:08]}
14... Qc7 {[%clk 0:02:36.4]} 15. Ne4 {[%clk 0:03:02.5]} 15... Ngf6 {[%clk
0:02:37]} 16. O-O-O {[%clk 0:02:58.9]} 16... b5 {[%clk 0:02:36.5]} 17. c5 {[%clk
0:02:47.6]} 17... Nxe4 {[%clk 0:02:32.6]} 18. Qxe4 {[%clk 0:02:47.9]} 18... Nf6
{[%clk 0:02:34.1]} 19. Qe2 {[%clk 0:02:37.1]} 19... Qd7 {[%clk 0:02:33]} 20. Kb1
{[%clk 0:02:23.7]} 20... Qd5 {[%clk 0:02:33]} 21. Be3 {[%clk 0:01:47.4]} 21...
a5 {[%clk 0:02:29.9]} 22. Ne5 {[%clk 0:01:43.9]} 22... Bxc5 {[%clk 0:02:13.4]}
23. Nxf7 {[%clk 0:01:31.8]} 23... Kxf7 {[%clk 0:02:06.7]} 24. dxc5 {[%clk
0:01:32.4]} 24... Qf5+ {[%clk 0:02:05]} 25. Qd3 {[%clk 0:01:13.9]} 25... Rhd8
{[%clk 0:02:01.1]} 26. Qxf5 {[%clk 0:01:13.1]} 26... exf5 {[%clk 0:02:03]} 27.
Rxd8 {[%clk 0:01:04.7]} 27... Rxd8 {[%clk 0:02:03.7]} 28. Kc2 {[%clk 0:01:06.2]}
28... Rd5 {[%clk 0:01:54.4]} 29. f3 {[%clk 0:01:02.3]} 29... f4 {[%clk
0:01:54.7]} 30. Bxf4 {[%clk 0:00:58.8]} 30... Rxc5+ {[%clk 0:01:55.7]} 31. Kb3
{[%clk 0:00:59.2]} 31... Rxh5 {[%clk 0:01:57.2]} 32. Rxh5 {[%clk 0:00:59.5]}
32... Nxh5 {[%clk 0:01:59.1]} 33. Bd2 {[%clk 0:00:59.8]} 33... a4+ {[%clk
0:01:59.5]} 34. Kb4 {[%clk 0:01:00.9]} 34... Ke6 {[%clk 0:01:55.8]} 35. Kc5
{[%clk 0:01:01.9]} 35... Kd7 {[%clk 0:01:56.7]} 36. g4 {[%clk 0:00:58.7]} 36...
Nf6 {[%clk 0:01:46.3]} 37. Bc3 {[%clk 0:00:59.6]} 37... Ne8 {[%clk 0:01:30.6]}
38. Be5 {[%clk 0:00:56.7]} 38... Nc7 {[%clk 0:01:29.3]} 39. f4 {[%clk
0:00:48.2]} 39... Ne6+ {[%clk 0:01:29.9]} 40. Kb6 {[%clk 0:00:49.2]} 40... g6
{[%clk 0:01:31]} 41. f5 {[%clk 0:00:45.6]} 41... gxf5 {[%clk 0:01:31.7]} 42.
gxf5 {[%clk 0:00:47.5]} 42... Ng5 {[%clk 0:01:31.7]} 43. Bf4 {[%clk 0:00:44.1]}
43... Nf7 {[%clk 0:01:31]} 44. Kc5 {[%clk 0:00:43.1]} 44... h5 {[%clk
0:01:31.9]} 45. Bg3 {[%clk 0:00:43.3]} 45... Ng5 {[%clk 0:01:17.1]} 46. Bf4
{[%clk 0:00:37.6]} 46... Nf3 {[%clk 0:01:08.5]} 47. f6 {[%clk 0:00:36.4]} 47...
Ke6 {[%clk 0:01:00.8]} 48. f7 {[%clk 0:00:34.7]} 48... Kxf7 {[%clk 0:01:01.4]}
49. Kxc6 {[%clk 0:00:36.1]} 49... Nd4+ {[%clk 0:00:55.3]} 50. Kd5 {[%clk
0:00:32.4]} 50... Ne2 {[%clk 0:00:51.7]} 51. Bh2 {[%clk 0:00:29.9]} 51... Kf6
{[%clk 0:00:49.7]} 52. Kc5 {[%clk 0:00:30.8]} 52... Kf5 {[%clk 0:00:36.7]} 53.
Kxb5 {[%clk 0:00:31.4]} 53... Nd4+ {[%clk 0:00:38.2]} 54. Kxa4 {[%clk
0:00:31.2]} 54... Nf3 {[%clk 0:00:40.1]} 55. Bd6 {[%clk 0:00:27.4]} 55... h4
{[%clk 0:00:40.7]} 56. b4 {[%clk 0:00:25.9]} 56... Ne5 {[%clk 0:00:31.8]} 57. b5
{[%clk 0:00:23.2]} 57... h3 {[%clk 0:00:30.5]} 58. Bxe5 {[%clk 0:00:21.1]} 58...
Kxe5 {[%clk 0:00:30.1]} 59. b6 {[%clk 0:00:21.6]} 59... Kd6 {[%clk 0:00:31.1]}
60. Kb5 {[%clk 0:00:20.2]} 60... h2 {[%clk 0:00:31.8]} 61. Ka6 {[%clk
0:00:16.9]} 61... h1=Q {[%clk 0:00:32]} 62. b7 {[%clk 0:00:18.8]} 62... Kc7
{[%clk 0:00:33]} 0-1

[Event "*** Titled Tuesday Blitz"]
[Site "Chess.com"]
[Date "2018.06.05"]
[Round "1"]
[White "wonderfultime"]
[Black "PaulfromSPb"]
[Result "1-0"]
[WhiteElo "2852"]
[BlackElo "2421"]
[TimeControl "180+2"]
[EndTime "13:10:01 PDT"]
[Termination "wonderfultime won by resignation"]

1. d4 {[%clk 0:03:01.5]} 1... Nf6 {[%clk 0:03:00.3]} 2. Nf3 {[%clk 0:03:00.4]}
2... e6 {[%clk 0:03:01.1]} 3. Bf4 {[%clk 0:03:01.3]} 3... b6 {[%clk 0:02:59.4]}
4. Nbd2 {[%clk 0:03:02.1]} 4... Bb7 {[%clk 0:03:00.1]} 5. h3 {[%clk 0:03:03.5]}
5... Be7 {[%clk 0:02:53.8]} 6. e3 {[%clk 0:03:04.8]} 6... O-O {[%clk 0:02:53.4]}
7. Bd3 {[%clk 0:03:06]} 7... c5 {[%clk 0:02:54]} 8. O-O {[%clk 0:03:06.7]} 8...
Nc6 {[%clk 0:02:54.6]} 9. c3 {[%clk 0:03:07.9]} 9... d6 {[%clk 0:02:52.9]} 10.
Bh2 {[%clk 0:03:03.3]} 10... a6 {[%clk 0:02:53.1]} 11. a4 {[%clk 0:03:03.8]}
11... Rc8 {[%clk 0:02:43.5]} 12. Qe2 {[%clk 0:02:55.5]} 12... Ra8 {[%clk
0:02:40.2]} 13. Rfd1 {[%clk 0:02:47.5]} 13... Nd7 {[%clk 0:02:40.6]} 14. Nc4
{[%clk 0:02:25.3]} 14... d5 {[%clk 0:02:35.7]} 15. Nd6 {[%clk 0:02:24]} 15...
Bxd6 {[%clk 0:02:32.6]} 16. Bxd6 {[%clk 0:02:25.9]} 16... Re8 {[%clk 0:02:34]}
17. b4 {[%clk 0:02:21.1]} 17... cxb4 {[%clk 0:02:29.8]} 18. Bxb4 {[%clk
0:02:17.4]} 18... Nxb4 {[%clk 0:02:25]} 19. cxb4 {[%clk 0:02:18.4]} 19... Qe7
{[%clk 0:02:24.5]} 20. Rab1 {[%clk 0:02:19.4]} 20... Rec8 {[%clk 0:02:23.2]} 21.
Qd2 {[%clk 0:02:13.4]} 21... a5 {[%clk 0:02:23]} 22. bxa5 {[%clk 0:02:10.1]}
22... Rxa5 {[%clk 0:02:21.3]} 23. Bb5 {[%clk 0:02:04.8]} 23... Ba6 {[%clk
0:02:17.9]} 24. Bxd7 {[%clk 0:02:02]} 24... Qxd7 {[%clk 0:02:18.1]} 25. Rxb6
{[%clk 0:02:02.4]} 25... Rxa4 {[%clk 0:02:14]} 26. Ne5 {[%clk 0:02:03.4]} 26...
Qe8 {[%clk 0:02:13.3]} 27. Rdb1 {[%clk 0:01:58.9]} 27... f6 {[%clk 0:02:12.5]}
28. Nd3 {[%clk 0:01:51.8]} 28... Bxd3 {[%clk 0:02:08.7]} 29. Qxd3 {[%clk
0:01:53.7]} 29... Rac4 {[%clk 0:02:09.4]} 30. Qa3 {[%clk 0:01:45.3]} 30... R4c6
{[%clk 0:02:04.3]} 31. Rb7 {[%clk 0:01:37.8]} 31... R6c7 {[%clk 0:02:02.8]} 32.
Qd6 {[%clk 0:01:28.4]} 32... Rf7 {[%clk 0:01:50.7]} 33. R1b6 {[%clk 0:01:22.4]}
33... Rxb7 {[%clk 0:01:46.4]} 34. Rxb7 {[%clk 0:01:23.3]} 34... Rc6 {[%clk
0:01:37.9]} 35. Qg3 {[%clk 0:01:24.1]} 35... Qf8 {[%clk 0:01:33.4]} 36. h4
{[%clk 0:01:07.4]} 36... Rc1+ {[%clk 0:01:33.2]} 37. Kh2 {[%clk 0:01:08.3]}
37... Rc6 {[%clk 0:01:34.3]} 38. h5 {[%clk 0:01:09.3]} 38... h6 {[%clk
0:01:31.6]} 39. f3 {[%clk 0:01:02]} 39... Kh8 {[%clk 0:01:31.7]} 40. e4 {[%clk
0:01:02.2]} 40... dxe4 {[%clk 0:01:29.1]} 41. fxe4 {[%clk 0:01:04.1]} 41... Rd6
{[%clk 0:01:30.1]} 42. Rxg7 {[%clk 0:00:45.1]} 42... Rxd4 {[%clk 0:01:24.5]} 43.
Rg6 {[%clk 0:00:35.7]} 43... Rxe4 {[%clk 0:01:20.3]} 44. Qf3 {[%clk 0:00:37.1]}
44... Re5 {[%clk 0:01:09.8]} 45. g4 {[%clk 0:00:17.8]} 45... Rd5 {[%clk
0:00:42.9]} 46. Qf4 {[%clk 0:00:13.2]} 46... Qd6 {[%clk 0:00:11.3]} 47. Rxh6+
{[%clk 0:00:14.1]} 47... Kg7 {[%clk 0:00:12.5]} 48. Rg6+ {[%clk 0:00:16]} 48...
Kf7 {[%clk 0:00:12]} 49. Rxf6+ {[%clk 0:00:16.9]} 49... Ke7 {[%clk 0:00:13.3]}
50. Rf7+ {[%clk 0:00:11.3]} 50... Ke8 {[%clk 0:00:13.8]} 51. Qxd6 {[%clk
0:00:12.6]} 51... Rxd6 {[%clk 0:00:14.9]} 52. Ra7 {[%clk 0:00:12.6]} 52... Rd3
{[%clk 0:00:15.2]} 53. h6 {[%clk 0:00:13.6]} 53... Rd2+ {[%clk 0:00:08.6]} 54.
Kg3 {[%clk 0:00:14.9]} 54... Rd3+ {[%clk 0:00:10]} 55. Kh4 {[%clk 0:00:15.5]}
55... Rd1 {[%clk 0:00:11]} 56. h7 {[%clk 0:00:17]} 56... Rh1+ {[%clk 0:00:12]}
57. Kg5 {[%clk 0:00:18.3]} 57... Kf8 {[%clk 0:00:13.3]} 58. Kg6 {[%clk
0:00:18.3]} 58... e5 {[%clk 0:00:12.4]} 59. Ra8+ {[%clk 0:00:19.6]} 59... Ke7
{[%clk 0:00:13.7]} 60. h8=Q {[%clk 0:00:21.5]} 1-0

[Event "*** Titled Tuesday Blitz"]
[Site "Chess.com"]
[Date "2018.06.05"]
[Round "1"]
[White "krzysztofszczurek"]
[Black "comedy_of_errors"]
[Result "0-1"]
[WhiteElo "2252"]
[BlackElo "2585"]
[TimeControl "180+2"]
[EndTime "13:10:02 PDT"]
[Termination "comedy_of_errors won by resignation"]

1. e4 {[%clk 0:03:00.9]} 1... e6 {[%clk 0:02:59.8]} 2. d4 {[%clk 0:03:00.2]}
2... d5 {[%clk 0:03:01.7]} 3. exd5 {[%clk 0:03:00.9]} 3... exd5 {[%clk
0:03:02.8]} 4. Nf3 {[%clk 0:03:02]} 4... Nc6 {[%clk 0:03:02.9]} 5. c3 {[%clk
0:03:02.1]} 5... Bd6 {[%clk 0:03:04.1]} 6. Bd3 {[%clk 0:03:02.9]} 6... Nge7
{[%clk 0:03:05.5]} 7. O-O {[%clk 0:03:03.8]} 7... Bg4 {[%clk 0:03:06]} 8. Be3
{[%clk 0:03:00.1]} 8... Qd7 {[%clk 0:03:06.2]} 9. Nbd2 {[%clk 0:02:57.1]} 9...
f6 {[%clk 0:03:07.2]} 10. Qc2 {[%clk 0:02:57.1]} 10... Bf5 {[%clk 0:03:06.4]}
11. Rfe1 {[%clk 0:02:52.6]} 11... O-O {[%clk 0:03:06.3]} 12. Kh1 {[%clk
0:02:39.2]} 12... Rfe8 {[%clk 0:03:05.4]} 13. Nb3 {[%clk 0:02:34.7]} 13... Bxd3
{[%clk 0:02:59.9]} 14. Qxd3 {[%clk 0:02:34.6]} 14... Qf5 {[%clk 0:03:01.4]} 15.
Qb5 {[%clk 0:02:30.8]} 15... a6 {[%clk 0:02:57.6]} 16. Qe2 {[%clk 0:02:26.5]}
16... Qh5 {[%clk 0:02:53.8]} 17. h3 {[%clk 0:02:18.4]} 17... Nf5 {[%clk
0:02:54.2]} 18. Qd3 {[%clk 0:02:09.8]} 18... Nxe3 {[%clk 0:02:34.2]} 19. Rxe3
{[%clk 0:02:05.3]} 19... Rxe3 {[%clk 0:02:35]} 20. Qxe3 {[%clk 0:02:05.4]} 20...
Re8 {[%clk 0:02:36.4]} 21. Qd2 {[%clk 0:02:05.8]} 21... Re4 {[%clk 0:02:27.1]}
22. Re1 {[%clk 0:02:01.7]} 22... Ne7 {[%clk 0:01:59.1]} 23. Nc5 {[%clk
0:01:46.1]} 23... Bxc5 {[%clk 0:01:56.8]} 24. dxc5 {[%clk 0:01:45.6]} 24... Qf5
{[%clk 0:01:50.8]} 25. Nd4 {[%clk 0:01:37.7]} 25... Qe5 {[%clk 0:01:48.7]} 26.
Rxe4 {[%clk 0:01:33.3]} 26... dxe4 {[%clk 0:01:45.6]} 27. b4 {[%clk 0:01:31.1]}
27... f5 {[%clk 0:01:45]} 28. g3 {[%clk 0:01:26.4]} 28... Kf7 {[%clk 0:01:42.5]}
29. Kg2 {[%clk 0:01:24.4]} 29... Qd5 {[%clk 0:01:42.2]} 30. Kh2 {[%clk
0:01:21.6]} 30... Qe5 {[%clk 0:01:30.5]} 31. Qe2 {[%clk 0:01:13.1]} 31... g6
{[%clk 0:01:23.8]} 32. Qd2 {[%clk 0:01:05]} 32... Kg7 {[%clk 0:01:21.7]} 33. Ne2
{[%clk 0:01:02.2]} 33... Qd5 {[%clk 0:01:20.1]} 34. Qf4 {[%clk 0:01:00]} 34...
Qxa2 {[%clk 0:01:12.6]} 35. Qxc7 {[%clk 0:00:56.9]} 35... Kf7 {[%clk 0:01:13.8]}
36. Nf4 {[%clk 0:00:47.1]} 36... Qxf2+ {[%clk 0:01:13.5]} 37. Ng2 {[%clk
0:00:46.4]} 37... e3 {[%clk 0:01:08.9]} 38. Qe5 {[%clk 0:00:46.6]} 38... e2
{[%clk 0:01:09.8]} 39. c4 {[%clk 0:00:46.7]} 39... g5 {[%clk 0:01:03.7]} 40. b5
{[%clk 0:00:42.6]} 40... axb5 {[%clk 0:01:05.6]} 41. cxb5 {[%clk 0:00:43.2]}
41... f4 {[%clk 0:01:07.5]} 42. gxf4 {[%clk 0:00:43.5]} 42... gxf4 {[%clk
0:01:06.8]} 43. Qh5+ {[%clk 0:00:40.3]} 43... Ng6 {[%clk 0:01:07.7]} 44. Qf5+
{[%clk 0:00:40.4]} 44... Kg7 {[%clk 0:01:06.1]} 45. Qd7+ {[%clk 0:00:36.3]}
45... Kh6 {[%clk 0:01:06.9]} 46. Qd2 {[%clk 0:00:36.1]} 46... Qg3+ {[%clk
0:00:59.3]} 47. Kh1 {[%clk 0:00:30.6]} 47... Qxh3+ {[%clk 0:01:00.4]} 48. Kg1
{[%clk 0:00:31]} 48... Qg4 {[%clk 0:00:59.7]} 49. c6 {[%clk 0:00:29.5]} 49...
bxc6 {[%clk 0:00:59.1]} 50. bxc6 {[%clk 0:00:29.7]} 50... Qe6 {[%clk 0:00:44.7]}
51. c7 {[%clk 0:00:25.1]} 51... Qb6+ {[%clk 0:00:45.6]} 52. Kh1 {[%clk 0:00:22]}
52... Qxc7 {[%clk 0:00:46.9]} 53. Qxe2 {[%clk 0:00:22.3]} 53... Qc6 {[%clk
0:00:45.5]} 54. Kh2 {[%clk 0:00:21]} 54... Qd6 {[%clk 0:00:45.7]} 55. Qf3 {[%clk
0:00:20.3]} 55... Qe5 {[%clk 0:00:47.1]} 56. Kh1 {[%clk 0:00:20.3]} 56... Qh5+
{[%clk 0:00:47.8]} 57. Qxh5+ {[%clk 0:00:18.7]} 57... Kxh5 {[%clk 0:00:49.7]}
58. Kg1 {[%clk 0:00:20]} 58... Kg4 {[%clk 0:00:51.1]} 59. Kf2 {[%clk 0:00:20.7]}
59... Ne5 {[%clk 0:00:52.1]} 60. Ne1 {[%clk 0:00:21.4]} 60... h5 {[%clk
0:00:51.7]} 61. Nc2 {[%clk 0:00:21.7]} 61... h4 {[%clk 0:00:52.9]} 62. Nd4
{[%clk 0:00:22.2]} 62... h3 {[%clk 0:00:54.5]} 63. Nc2 {[%clk 0:00:20.1]} 63...
Nc4 {[%clk 0:00:53.5]} 64. Kg1 {[%clk 0:00:18.5]} 64... Kg3 {[%clk 0:00:53.5]}
65. Nd4 {[%clk 0:00:19]} 65... Ne3 {[%clk 0:00:49.1]} 66. Ne2+ {[%clk
0:00:18.4]} 66... Kg4 {[%clk 0:00:49.4]} 67. Kh2 {[%clk 0:00:18.4]} 67... Nf1+
{[%clk 0:00:50.5]} 68. Kg1 {[%clk 0:00:18.4]} 68... h2+ {[%clk 0:00:48.8]} 69.
Kh1 {[%clk 0:00:18.9]} 69... Ng3+ {[%clk 0:00:49.8]} 0-1

[Event "*** Titled Tuesday Blitz"]
[Site "Chess.com"]
[Date "2018.06.05"]
[Round "1"]
[White "26andrej26"]
[Black "Dr-Bassem"]
[Result "1-0"]
[WhiteElo "2373"]
[BlackElo "2677"]
[TimeControl "180+2"]
[EndTime "13:10:03 PDT"]
[Termination "26andrej26 won by resignation"]

1. e4 {[%clk 0:03:01.8]} 1... e5 {[%clk 0:02:26.3]} 2. f4 {[%clk 0:02:59]} 2...
exf4 {[%clk 0:02:26.8]} 3. Nf3 {[%clk 0:03:00.2]} 3... g5 {[%clk 0:02:25.6]} 4.
h4 {[%clk 0:02:49.7]} 4... g4 {[%clk 0:02:20]} 5. Ne5 {[%clk 0:02:51]} 5... h5
{[%clk 0:01:58.1]} 6. Bc4 {[%clk 0:02:31.6]} 6... Nh6 {[%clk 0:01:18.8]} 7. d4
{[%clk 0:02:25.9]} 7... d6 {[%clk 0:01:17.7]} 8. Nd3 {[%clk 0:02:20.7]} 8... f3
{[%clk 0:01:18.4]} 9. gxf3 {[%clk 0:02:03.4]} 9... Be7 {[%clk 0:01:19.2]} 10.
Be3 {[%clk 0:01:45.5]} 10... Bxh4+ {[%clk 0:01:10.7]} 11. Kd2 {[%clk 0:01:46.7]}
11... Nc6 {[%clk 0:00:45.3]} 12. Nc3 {[%clk 0:01:30.8]} 12... Na5 {[%clk
0:00:42.8]} 13. Bb3 {[%clk 0:01:19.7]} 13... Nxb3+ {[%clk 0:00:42.4]} 14. axb3
{[%clk 0:01:19.9]} 14... Bd7 {[%clk 0:00:36.4]} 15. Ra5 {[%clk 0:01:18.6]} 15...
c5 {[%clk 0:00:25.2]} 16. Ra3 {[%clk 0:01:07.5]} 16... cxd4 {[%clk 0:00:20.6]}
17. Bxd4 {[%clk 0:01:08.5]} 17... Rg8 {[%clk 0:00:16.8]} 18. Nd5 {[%clk
0:01:02.3]} 18... Be6 {[%clk 0:00:14]} 19. Rxh4 {[%clk 0:00:51.9]} 19... Bxd5
{[%clk 0:00:14.5]} 20. Rxh5 {[%clk 0:00:52.9]} 20... gxf3 {[%clk 0:00:05.3]} 21.
Qxf3 {[%clk 0:00:33.3]} 21... Be6 {[%clk 0:00:05.4]} 22. Rxh6 {[%clk 0:00:33]}
22... d5 {[%clk 0:00:04.3]} 23. Rh2 {[%clk 0:00:17.2]} 23... Bg4 {[%clk
0:00:02.5]} 24. Qe3 {[%clk 0:00:17.9]} 24... dxe4 {[%clk 0:00:02.9]} 25. Qxe4+
{[%clk 0:00:19.1]} 25... Be6 {[%clk 0:00:03.4]} 26. Nc5 {[%clk 0:00:18.1]} 26...
Qg5+ {[%clk 0:00:04.4]} 27. Qe3 {[%clk 0:00:19.4]} 27... Qd5 {[%clk 0:00:04.1]}
28. Nxe6 {[%clk 0:00:19.5]} 28... fxe6 {[%clk 0:00:06]} 29. Re2 {[%clk 0:00:08]}
29... O-O-O {[%clk 0:00:06.3]} 30. c3 {[%clk 0:00:09.5]} 30... Rge8 {[%clk
0:00:06]} 31. Rxa7 {[%clk 0:00:09.9]} 31... e5 {[%clk 0:00:06.4]} 32. Ra8+
{[%clk 0:00:10.9]} 32... Kc7 {[%clk 0:00:07.1]} 33. Rxd8 {[%clk 0:00:11.5]}
33... Qxd8 {[%clk 0:00:07.9]} 34. Kc2 {[%clk 0:00:11]} 34... exd4 {[%clk
0:00:07.7]} 35. Qxe8 {[%clk 0:00:09.8]} 35... d3+ {[%clk 0:00:09]} 36. Kd2
{[%clk 0:00:10.1]} 36... dxe2+ {[%clk 0:00:10.1]} 37. Qxd8+ {[%clk 0:00:11.3]}
37... Kxd8 {[%clk 0:00:11.5]} 38. Kxe2 {[%clk 0:00:12.8]} 38... Kc7 {[%clk
0:00:13.1]} 39. Kd3 {[%clk 0:00:14.2]} 39... Kd6 {[%clk 0:00:14.8]} 40. Kc4
{[%clk 0:00:14.7]} 40... Kc6 {[%clk 0:00:15.9]} 41. Kb4 {[%clk 0:00:15.9]} 41...
Kb6 {[%clk 0:00:17]} 42. Kc4 {[%clk 0:00:16.6]} 42... Kc6 {[%clk 0:00:18.3]} 43.
b4 {[%clk 0:00:17.9]} 43... b6 {[%clk 0:00:17.2]} 44. b5+ {[%clk 0:00:18.6]}
44... Kd6 {[%clk 0:00:18.6]} 45. Kd4 {[%clk 0:00:20.1]} 45... Ke6 {[%clk
0:00:19.8]} 46. Ke4 {[%clk 0:00:18.6]} 46... Kd6 {[%clk 0:00:20.8]} 47. b4
{[%clk 0:00:19]} 47... Ke6 {[%clk 0:00:21.9]} 48. c4 {[%clk 0:00:20.3]} 48...
Kd6 {[%clk 0:00:23.3]} 49. Kf5 {[%clk 0:00:21.6]} 49... Kd7 {[%clk 0:00:22.6]}
50. Ke5 {[%clk 0:00:22.4]} 50... Ke7 {[%clk 0:00:24]} 51. Kd5 {[%clk 0:00:23.3]}
51... Kd7 {[%clk 0:00:25.4]} 52. c5 {[%clk 0:00:24.5]} 52... Kc7 {[%clk
0:00:25]} 53. Ke6 {[%clk 0:00:25.3]} 53... Kc8 {[%clk 0:00:23.9]} 54. Kd6 {[%clk
0:00:26.3]} 54... Kb7 {[%clk 0:00:23.2]} 55. Kd7 {[%clk 0:00:26.3]} 55... Kb8
{[%clk 0:00:18.8]} 56. Kc6 {[%clk 0:00:27.3]} 56... Ka7 {[%clk 0:00:19.1]} 57.
Kc7 {[%clk 0:00:27.1]} 57... Ka8 {[%clk 0:00:16.8]} 58. Kxb6 {[%clk 0:00:28]}
58... Kb8 {[%clk 0:00:18]} 59. Kc6 {[%clk 0:00:29.3]} 59... Kc8 {[%clk
0:00:19.4]} 60. b6 {[%clk 0:00:29.9]} 60... Kb8 {[%clk 0:00:20.4]} 61. b7 {[%clk
0:00:31]} 61... Ka7 {[%clk 0:00:21.5]} 62. Kc7 {[%clk 0:00:31]} 62... Ka6 {[%clk
0:00:22.9]} 63. b5+ {[%clk 0:00:32.5]} 63... Ka5 {[%clk 0:00:21.9]} 64. b6
{[%clk 0:00:30.7]} 1-0